[Event "Austrian Bundesliga 2023-24"]
[Site "Austria"]
[Date "2024.03.23"]
[Round "10.34"]
[White "Bures, Jaroslav"]
[Black "Svane, Frederik"]
[Result "0-1"]
[ECO "B95"]
[WhiteElo "2407"]
[BlackElo "2617"]
[Annotator "TA"]
[PlyCount "98"]
[EventDate "2023.10.21"]
[EventType "team-tourn"]
[EventCountry "AUT"]
[SourceTitle "playchess.com"]
[Source "ChessBase"]
[SourceQuality "1"]
[TimeControl "40/5400+30:1800+30"]

{[%evp 19,98,0,0,-13,-9,-32,0,-16,0,0,-10,-16,0,-2,0,-25,0,-32,-35,-29,-26,-35,-29,-25,-10,-10,-4,-11,0,0,0,-19,-11,-24,-29,-24,0,0,0,-34,-25,-64,-64,-63,-36,-70,-72,-69,-68,-106,-111,-114,-123,-117,-126,-253,-256,-271,-239,-222,-225,-251,-242,-245,-225,-241,-239,-225,-103,-101,-101,-1136,-1243,-4768,-3389,-6629,-5973,-5863,-5800,-5540,-4622]} 1. e4 {[%emt 0:00:15]} c5 {[%emt 0:00:14]} 2. Nf3 {[%emt 0:00:23]} d6 {[%emt 0:00:17]} 3. d4 {[%emt 0:00:30]} cxd4 {[%emt 0:00:06]} 4. Nxd4 {[%emt 0:00:06]} Nf6 {[%emt 0:00:06]} 5. Nc3 {[%emt 0:01:02]} a6 {[%emt 0:00:08]} 6. Bg5 {[%emt 0:02:31]} e6 {[%emt 0:00:28]} 7. Qf3 {[%emt 0:00:22]} Be7 {[%emt 0:08:26]} 8. O-O-O {[%emt 0:00:52]} Qc7 {[%emt 0:00:59]} 9. Qg3 {[%emt 0:20:17] 9.g4 wird beliebter.} Nbd7 {[%emt 0:18:24]} 10. Bd3 {[%emt 0:21:09] B95: Sizilianisch (Najdorf-Variante mit 6.Lg5).} b5 {[%emt 0:02:13]} 11. Bxb5 {[%emt 0:07:40]} axb5 {[%emt 0:06:55]} 12. Ndxb5 {[%emt 0:00:02]} Qb7 $5 {[%emt 0:15:27][%mdl 4] Verlässt die ausgetretenen Pfade.} 13. Bxf6 $1 {[%emt 0:06:40]} Nxf6 {[%emt 0:04:10]} 14. Nxd6+ {[%emt 0:08:21]} Bxd6 {[%emt 0:00:09]} 15. Qxd6 {[%emt 0:00:02]} Nd7 $146 {[%emt 0:01:51]} (15... Nxe4 16. Qd8#) ({Predecessor:} 15... Bd7 16. Rd4 Ra6 17. Qc5 Rc6 18. Qa3 Qb6 19. Rhd1 Qc5 20. Qxc5 Rxc5 21. f4 e5 22. fxe5 Rxe5 {½-½ Selin,S (2317)-Paredes,C (2182) W-ch WS/M/225 email 2009}) 16. a4 $1 {[%emt 0:01:04]} Qb6 {[%emt 0:01:55]} 17. f3 {[%emt 0:06:40]} h5 {[%emt 0:05:29]} (17... Qxd6 {vereinfacht} 18. Rxd6 Ne5 19. f4 Ng4) 18. Nb5 {[%emt 0:04:25]} Qxd6 {[%emt 0:03:21]} 19. Nxd6+ {[%emt 0:00:04]} Ke7 {[%emt 0:00:04]} 20. b3 {[%emt 0:00:11]} h4 {[%emt 0:02:17]} 21. Rd2 {[%emt 0:03:13]} h3 {[%emt 0:07:10]} 22. Rhd1 {[%emt 0:00:01]} Ra7 {[%emt 0:04:18]} 23. gxh3 {[%emt 0:02:17]} Ne5 {[%emt 0:02:55]} 24. f4 {[%emt 0:01:08]} Ng6 {[%emt 0:00:01]} 25. Rf2 {[%emt 0:00:57]} Bd7 {[%emt 0:00:47]} 26. Nc4 {[%emt 0:04:22]} Rxh3 {[%emt 0:05:37]} 27. f5 {[%emt 0:00:01]} Nh4 {[%emt 0:00:28]} 28. Ne5 {[%emt 0:03:31]} Be8 {[%emt 0:05:23]} 29. fxe6 {[%emt 0:01:44]} Kxe6 {[%emt 0:01:15]} 30. Rd3 {[%emt 0:00:03]} Rxd3 {[%emt 0:00:27]} 31. Nxd3 {[%emt 0:00:01]} Bc6 {[%emt 0:00:52]} 32. Rf4 {[%emt 0:02:47]} g5 {[%emt 0:00:37]} 33. Rg4 {[%emt 0:00:06]} Nf3 {[%emt 0:00:53]} 34. Nc5+ {[%emt 0:02:30]} Kd6 {[%emt 0:00:13]} 35. b4 {[%emt 0:00:03] [#]} f6 $1 {[%emt 0:00:49]} 36. a5 {[%emt 0:00:12]} Nxh2 {[%emt 0:01:09]} 37. Rg2 {[%emt 0:00:32]} (37. Rg3 $17) 37... Nf3 $19 {[%emt 0:00:08]} 38. c4 {[%emt 0:00:03]} Ne5 {[%emt 0:01:40]} 39. Rd2+ {[%emt 0:00:01]} Ke7 {[%emt 0:00:00]} 40. Rc2 {[%emt 0:00:00]} Be8 {[%emt 0:00:00]} 41. a6 {[%emt 0:06:57]} Bf7 {[%emt 0:07:41]} 42. b5 {[%emt 0:01:22]} Nxc4 {[%emt 0:00:48]} (42... Bxc4 43. b6 Rxa6 44. Nxa6 Bxa6 45. b7 Bxb7 46. Rc7+ Ke6 47. Rxb7 $11) 43. Nd3 {[%emt 0:06:07] [#]} Be8 {[%emt 0:10:44]} (43... Ra8 $1 $19 {bietet bessere Gewinnchancen. Droht ...g4 und aus.} 44. Nb4 (44. Rc3 g4) 44... g4) 44. Rxc4 $17 {[%emt 0:02:40]} Bxb5 {[%emt 0:00:04]} 45. Rd4 $2 {[%emt 0:01:44][%mdl 8192]} (45. Rb4 $17 Bxa6 (45... Bxd3 $2 {verliert.} 46. Rb7+ Rxb7 47. axb7 $18) 46. Ra4) 45... Bxd3 $19 {[%emt 0:01:21]} ({Weniger gut wäre} 45... Bxa6 46. Nb4 Ke6 47. Kd2 $17) ({Nicht} 45... Rxa6 46. Nf2 $19) 46. Rxd3 {[%emt 0:00:01]} Rxa6 {[%emt 0:00:07]} 47. Rg3 {[%emt 0:02:20]} Rd6 {[%emt 0:01:46]} 48. e5 {[%emt 0:00:28]} Rd5 {[%emt 0:00:18]} 49. exf6+ {[%emt 0:00:05]} Kxf6 {[%emt 0:00:03]} 0-1

[Event "Austrian Bundesliga 2023-24"]
[Site "Austria"]
[Date "2024.03.23"]
[Round "10.35"]
[White "Wagner, Dennis"]
[Black "Mikes, Jan"]
[Result "1/2-1/2"]
[ECO "E04"]
[WhiteElo "2620"]
[BlackElo "2358"]
[Annotator "TA"]
[PlyCount "86"]
[EventDate "2023.10.21"]
[EventType "team-tourn"]
[EventCountry "AUT"]
[SourceTitle "playchess.com"]
[Source "ChessBase"]
[SourceQuality "1"]
[TimeControl "40/5400+30:1800+30"]

{[%evp 12,86,36,41,30,12,31,-64,-46,-66,-51,-92,-90,-105,-97,-97,-83,-99,-25,-71,-49,-64,-38,-133,0,0,0,0,308,296,459,385,372,392,391,376,961,962,863,503,870,404,368,360,366,355,380,398,411,398,349,0,348,152,150,114,364,168,153,54,129,108,129,133,139,0,0,0,0,0,0,0,0,0,0,0,0]} 1. d4 {[%emt 0:00:03]} Nf6 {[%emt 0:00:11]} 2. c4 {[%emt 0:00:06]} e6 {[%emt 0:00:23]} 3. Nf3 {[%emt 0:00:12]} d5 {[%emt 0:00:15]} 4. g3 {[%emt 0:00:47]} dxc4 {[%emt 0:00:40]} 5. Bg2 {[%emt 0:00:07]} Nbd7 {[%emt 0:00:23]} 6. O-O {[%emt 0:01:08]} c6 {[%emt 0:00:18]} 7. a4 {[%emt 0:08:46]} b6 {[%emt 0:01:26]} 8. Nc3 {[%emt 0:02:43]} Nd5 {[%emt 0:00:58]} 9. Ne5 {[%emt 0:15:02]} (9. e4 $14 Nb4 10. Qe2) 9... Nxe5 $15 {[%emt 0:10:42] Schwarz steht etwas besser.} 10. dxe5 {[%emt 0:00:05][%cal Oa4a5]} Qc7 {[%emt 0:10:37]} 11. Qd4 {[%emt 0:00:34]} Ba6 {[%emt 0:02:27]} 12. h4 {[%emt 0:06:00]} Be7 {[%emt 0:06:51]} 13. Qe4 {[%emt 0:09:58]} Rc8 {[%emt 0:03:40]} 14. Kh2 {[%emt 0:07:39]} h5 {[%emt 0:08:56]} (14... O-O $17 15. f4 Bb4) 15. Bd2 {[%emt 0:03:39]} (15. Rd1 $11) 15... g6 {[%emt 0:11:54]} 16. Bh3 {[%emt 0:01:16]} Bb7 {[%emt 0:07:51][%cal Ob6b5]} 17. Rad1 {[%emt 0:06:00]} ({Vorzuziehen ist} 17. f4 $15) 17... Nxc3 {[%emt 0:07:15]} ({Günstiger ist} 17... b5 $1 $17 {...b4 wäre nun fies.} 18. axb5 Nxc3 19. Bxc3 cxb5) 18. Bxc3 $11 {[%emt 0:00:19][%cal Oh3e6] Schwarz muss nun Bxe6! beachten.} c5 {[%emt 0:01:40]} 19. Qxc4 {[%emt 0:00:09]} g5 $2 {[%emt 0:03:29][%mdl 8192]} (19... O-O $11 {und Schwarz muss sich keine Sorgen machen.}) 20. hxg5 $18 {[%cal Og5g6] Zielt auf g6! ab.} Bxg5 {[%emt 0:03:16] [#]} (20... h4 {war nötig.} 21. gxh4 Qc6) 21. Bxe6 $1 {[%emt 0:11:52][%mdl 512]} h4 {[%emt 0:03:33] [#]} 22. g4 {[%emt 0:09:37]} fxe6 {[%emt 0:00:51]} 23. Qxe6+ {[%emt 0:00:05]} Be7 $2 {[%emt 0:00:14]} (23... Qe7 24. Qg6+ Qf7 (24... Kf8 $2 25. f4 $18) 25. Qxg5 (25. Qxf7+ Kxf7 26. Rd7+ Ke6 $18) 25... Rg8) 24. Rd6 {[%emt 0:00:31]} Rf8 {[%emt 0:07:08]} 25. f3 {[%emt 0:08:47] Droht stark Rfd1.} Bc6 {[%emt 0:00:38]} (25... Rf7 $142 26. Rfd1 Bc6) 26. Rfd1 {[%emt 0:01:59]} (26. Qg6+ $142 Rf7 27. Rxc6 (27. Qg8+ Bf8 $18) 27... Qxc6 28. e6 Qc7+ 29. Kh1) 26... Rf7 {[%emt 0:00:44]} 27. Kh3 {[%emt 0:01:29][%cal Oe6g6]} Bxa4 {[%emt 0:01:23][%cal Bc6a4,Ba4b5,Bb5c4][%mdl 32]} 28. R1d3 {[%emt 0:00:55]} Bb5 {[%emt 0:00:43]} 29. Re3 {[%emt 0:00:31]} Rg7 {[%emt 0:03:40] [#]} 30. Qh6 $1 {[%emt 0:00:47]} Bf8 {[%emt 0:00:27]} 31. Qe6+ {[%emt 0:00:40]} Be7 {[%emt 0:00:04] [#]} 32. Qf5 {[%emt 0:02:21]} Bc4 $16 {[%emt 0:00:13][%cal Oc8d8]} 33. Rh6 $1 {[%emt 0:00:42][%mdl 1024] Droht Rh8+ und aus. Weiss hat starke Kompensation. Weiß steht aktiver.} Bf8 $2 {[%emt 0:02:46]} (33... Rd8 $16) 34. Rf6 {[%emt 0:00:47]} (34. Kxh4 Rd8 $11 (34... Rxg4+ 35. Qxg4 Bxh6 36. Qg6+ Qf7 37. Qxh6 $16)) (34. b3 $142 Bxb3 35. Rh8) 34... Be7 $18 {[%emt 0:00:15] [#]} 35. Be1 {[%emt 0:01:23]} (35. b3 $1 $16 {[%cal Rb3c4]} Bd5 (35... Bxb3 $2 {ist das falsche Schlagen.} 36. Qh5+ Rf7 37. Qxh4 $16) (35... Bf7 36. Rh6) 36. Be1) 35... Qd7 {[%emt 0:00:52]} (35... Rd8 $1 $14) 36. e6 $16 {[%emt 0:00:29] Das Brett brennt.} Qd4 {[%emt 0:00:29] [#]} 37. Bxh4 {[%emt 0:00:35]} Bxf6 {[%emt 0:01:14] [#]} ({Und nicht} 37... Qxe3 38. Rf8+ Bxf8 39. Qh5+) 38. Bxf6 {[%emt 0:00:18]} (38. Re4 $1 $16 Bxh4 39. Rxd4 cxd4 40. e7) 38... Qxe3 $11 {[%emt 0:00:22] Die Stellung ist ausgeglichen.} 39. Qh5+ $1 {[%emt 0:00:04]} Kf8 {[%emt 0:00:05]} 40. Bxg7+ {[%emt 0:00:00]} Kxg7 {[%emt 0:00:00]} 41. Qf7+ {[%emt 0:00:53]} Kh8 {[%emt 0:01:16]} 42. Qf6+ {[%emt 0:01:28]} Kh7 {[%emt 0:00:40]} 43. Qf7+ {[%emt 0:00:09]} Kh8 {[%emt 0:00:06] Schwarz springt nochmal von der Schüppe.   Gewichteter Fehlerwert: Weiß=0.83/Schwarz=0.43.  Verlustzug:     	---       	Schwarz=2     Gewinn verpasst:   	Weiß=1     	---        Fehler:       	Weiß=6     	Schwarz=5     Ungenau:       	Weiß=1     	Schwarz=1     OK:         	Weiß=9     	Schwarz=11    Bester:       	Weiß=3     	Schwarz=6     Stark:        	Weiß=2     	---} 1/2-1/2

[Event "Austrian Bundesliga 2023-24"]
[Site "Austria"]
[Date "2024.03.23"]
[Round "10.36"]
[White "Jablonicky, Martin"]
[Black "Buhmann, Rainer"]
[Result "1/2-1/2"]
[ECO "C01"]
[WhiteElo "2393"]
[BlackElo "2568"]
[Annotator "TA"]
[PlyCount "46"]
[EventDate "2023.10.21"]
[EventType "team-tourn"]
[EventCountry "AUT"]
[SourceTitle "playchess.com"]
[Source "ChessBase"]
[SourceQuality "1"]
[TimeControl "40/5400+30:1800+30"]

{[%evp 14,46,23,12,27,19,13,12,33,-12,-18,-15,-7,-8,-10,-30,-34,-29,-44,-36,0,0,0,0,0,0,0,0,-87,0,0,0,0,0,0]} 1. e4 {[%emt 0:00:03]} e6 {[%emt 0:00:07]} 2. d4 {[%emt 0:00:04]} d5 {[%emt 0:00:06]} 3. exd5 {[%emt 0:00:05]} exd5 {[%emt 0:00:13]} 4. Nf3 {[%emt 0:00:05]} Nf6 {[%emt 0:03:18]} 5. Bd3 {[%emt 0:00:06]} c5 {[%emt 0:02:35][%cal Bc7c5,Bc5c4][%mdl 32]} 6. O-O {[%emt 0:00:07]} c4 {[%emt 0:01:21]} 7. Re1+ {[%emt 0:00:05]} Be7 {[%emt 0:00:28]} 8. Bf1 {[%emt 0:00:07]} O-O {[%emt 0:00:39]} 9. b3 {[%emt 0:00:07]} cxb3 {[%emt 0:00:54]} 10. axb3 {[%emt 0:00:08]} Bg4 {[%emt 0:08:03]} 11. Rxe7 {[%emt 0:21:53]} Qxe7 {[%emt 0:00:30]} 12. Ba3 $1 {[%emt 0:00:04] [#]} Qe4 {[%emt 0:33:42]} 13. Bxf8 {[%emt 0:24:35] Strongly threatening Bc5.} (13. Nc3 Bxf3) 13... Bxf3 {[%emt 0:04:35]} 14. gxf3 {[%emt 0:00:32]} (14. Qxf3 {simplifies} Qxf3 15. gxf3 Kxf8 16. Bb5) 14... Qg6+ {[%emt 0:00:09]} 15. Kh1 {[%emt 0:00:04]} Kxf8 {[%emt 0:00:24]} 16. Qd2 {[%emt 0:00:06] [#] Qb4+ would now be deadly.} Qf5 {[%emt 0:20:49][%cal Ob8c6]} 17. Qb4+ {[%emt 0:02:39]} Kg8 {[%emt 0:00:30]} 18. Qxb7 {[%emt 0:01:31]} Qxf3+ {[%emt 0:00:59]} 19. Kg1 {[%emt 0:00:05] Intending Qc8+ and mate.} Qg4+ {[%emt 0:03:43]} 20. Bg2 {[%emt 0:00:09]} Qd1+ {[%emt 0:01:29]} 21. Bf1 {[%emt 0:00:07] White threatens Qc8+ and mate.} Qg4+ {[%emt 0:02:24] The position is equal.} 22. Bg2 {[%emt 0:00:06]} Qd1+ {[%emt 0:01:19]} 23. Bf1 {[%emt 0:00:08] Threatening mate with Qc8+.} Qg4+ {[%emt 0:01:44] Weighted Error Value: White=0.06 (flawless) /Black=0.08 (flawless) .  Inaccurate:     	White=1     	Black=1      OK:         	White=5     	Black=6      Best:        	White=3     	Black=6      Strong:       	White=1     	---} 1/2-1/2

[Event "Austrian Bundesliga 2023-24"]
[Site "Austria"]
[Date "2024.03.24"]
[Round "11.1"]
[White "Pechac, Jergus"]
[Black "Ragger, Markus"]
[Result "1/2-1/2"]
[ECO "C55"]
[WhiteElo "2571"]
[BlackElo "2605"]
[Annotator "TA"]
[PlyCount "60"]
[EventDate "2023.10.21"]
[EventType "team-tourn"]
[EventCountry "AUT"]
[SourceTitle "playchess.com"]
[Source "ChessBase"]
[SourceQuality "1"]
[TimeControl "40/5400+30:1800+30"]

{[%evp 11,60,41,54,40,45,49,41,47,46,50,54,56,86,68,98,54,83,89,110,91,79,67,76,66,66,61,95,89,115,49,100,90,80,107,87,137,132,108,106,0,0,0,0,0,0,0,0,0,0,0,0]} 1. e4 {[%emt 0:00:04]} e5 {[%emt 0:00:02]} 2. Nf3 {[%emt 0:00:07]} Nc6 {[%emt 0:00:03]} 3. Bc4 {[%emt 0:00:06]} Nf6 {[%emt 0:00:04][%cal Bg8f6,Bf6d5,Bd5b6][%mdl 32]} 4. d3 {[%emt 0:00:15]} d5 {[%emt 0:00:05]} 5. exd5 {[%emt 0:00:05]} Nxd5 {[%emt 0:00:05]} 6. O-O {[%emt 0:00:07]} Nb6 {[%emt 0:00:03]} 7. Bb5 {[%emt 0:00:09]} Bd6 {[%emt 0:00:03]} 8. Bxc6+ {[%emt 0:00:39]} bxc6 {[%emt 0:00:04] [#]} 9. Nxe5 $1 {[%emt 0:00:08] Weiß steht etwas besser.} Bxe5 {[%emt 0:00:03]} 10. Re1 {[%emt 0:00:07]} Qe7 {[%emt 0:00:21]} 11. Kh1 {[%emt 0:00:58]} Bb7 {[%emt 0:00:11]} 12. Qh5 {[%emt 0:04:13]} (12. f4 {vereinfacht} O-O 13. Rxe5 Qd6 14. Qf3) 12... Nd7 {[%emt 0:01:28]} 13. f4 {[%emt 0:07:31]} (13. d4 {scheint wilder zu sein.} Qb4 14. c3 Qe7 15. Na3) 13... O-O-O {[%emt 0:00:32]} 14. fxe5 {[%emt 0:04:40]} Qe6 {[%emt 0:00:08]} 15. Bd2 {[%emt 0:03:02]} c5 {[%emt 0:02:21]} 16. Na3 {[%emt 0:02:08]} g6 {[%emt 0:16:08]} 17. Qh4 {[%emt 0:01:43]} g5 {[%emt 0:08:27]} 18. Qh5 {[%emt 0:02:20]} (18. Qxg5 $2 Rdg8 19. Re2 Rxg5 20. Bxg5 Qg4 $19 (20... Nxe5 $2 21. Bf4 $19)) 18... Rhg8 {[%emt 0:08:20][%cal Bh8g8,Bg8g6,Bg6h6,Bh6e6][%mdl 32]} 19. Re2 {[%emt 0:00:28]} (19. Bxg5 $2 Qf5 $19) 19... Rg6 {[%emt 0:06:02]} 20. Rf1 {[%emt 0:00:31]} (20. Bxg5 $2 Rdg8 21. Rg1 Rxg5 $19) (20. Nc4 $16) 20... Rdg8 {[%emt 0:05:37]} (20... Re8 $14) 21. Nc4 {[%emt 0:04:40][%cal Oh1g1]} (21. Qxh7 $6 Qg4 22. Rff2 R8g7 23. Qh8+ Rg8 $11) 21... Rh6 {[%emt 0:13:20]} 22. Qxf7 {[%emt 0:00:07]} Rf8 {[%emt 0:00:07]} 23. Qxf8+ {[%emt 0:00:04]} Nxf8 {[%emt 0:00:03]} 24. Rxf8+ {[%emt 0:00:07]} Kd7 {[%emt 0:00:02] [#] Zielt auf ...Qh3 ab.} 25. Bxg5 {[%emt 0:18:59]} (25. Kg1 $16) 25... Qg4 $1 $36 {[%emt 0:10:24][%csl LRe2,LRg5][%mdl 2048] Schwarz kämpft um Vorteil. Die Stellung ist ausgeglichen.} 26. e6+ {[%emt 0:01:29]} Rxe6 {[%emt 0:00:11][%cal Og4g2]} 27. Rf7+ {[%emt 0:00:06]} (27. Ne5+ {führt zum Matt.} Rxe5 28. Rd8+ Kc6 29. h3 Qxe2 30. Rg8 Kb6 (30... Qxc2 $2 31. Bf4 $19) 31. Bh4 Qf1+ (31... Qxc2 32. d4 cxd4 33. Rg3 d3 34. Rg4 Re2 35. b3 Qd1+ 36. Kh2 Qd2 37. Kh1 Rxg2 38. Rb4+ Qxb4 39. Bf2+ Rxf2+ 40. Kg1 Qe1#) 32. Kh2 Re2 (32... Qf4+ $2 33. Bg3 $19) (32... Qf4+ $2 33. Bg3 $19)) 27... Kc8 $1 {[%emt 0:00:20][%cal Og4g2]} 28. Rf8+ {[%emt 0:00:03]} Kd7 {[%emt 0:00:06][%cal Og4g2]} 29. Rf7+ {[%emt 0:00:12]} (29. Ne5+ Rxe5 30. Rd8+ Kc6 31. h3 Qxe2 32. Bh6 Rg5 (32... Qxc2 $2 33. b4 $19) 33. Bxg5 Kb6 (33... Qxc2 $2 34. Be3 $19) (33... Qxc2 $2 34. Be3 $19)) 29... Kc8 $1 {[%emt 0:00:04][%cal Og4g2] ( -> ...Qxg2+!)} 30. Rf8+ {[%emt 0:00:05]} Kd7 {Gewichteter Fehlerwert: Weiß=0.18 (sehr präzise) /Schwarz=0.10 (sehr präzise) .  Fehler:       	Weiß=2     	Schwarz=1     Ungenau:       	Weiß=1     	Schwarz=3     OK:         	Weiß=8     	Schwarz=4     Bester:       	Weiß=3     	Schwarz=5     Stark:        	---       	Schwarz=3     Brilliant:      	Weiß=1     	---} 1/2-1/2

[Event "Austrian Bundesliga 2023-24"]
[Site "Austria"]
[Date "2024.03.24"]
[Round "11.2"]
[White "Handler, Lukas"]
[Black "Zilka, Stepan"]
[Result "1-0"]
[ECO "E18"]
[WhiteElo "2436"]
[BlackElo "2589"]
[Annotator "TA"]
[PlyCount "118"]
[EventDate "2023.10.21"]
[EventType "team-tourn"]
[EventCountry "AUT"]
[SourceTitle "playchess.com"]
[Source "ChessBase"]
[SourceQuality "1"]
[TimeControl "40/5400+30:1800+30"]

{[%evp 49,118,149,229,205,213,115,97,92,94,36,197,192,194,172,185,189,238,237,456,476,504,495,718,0,399,0,729,731,1226,1220,1231,1168,1134,1067,1126,908,1297,1218,1836,1770,2038,1722,1866,1871,4814,1127,4802,4545,1421,206,206,191,191,72,72,70,70,70,371,371,357,357,342,340,29970,29972,29965,943,29979,29980,29978]} 1. d4 {[%emt 0:00:04]} Nf6 {[%emt 0:00:06]} 2. c4 {[%emt 0:00:04]} e6 {[%emt 0:00:05]} 3. Nf3 {[%emt 0:00:05]} b6 {[%emt 0:00:34]} 4. g3 {[%emt 0:00:20]} Bb7 {[%emt 0:00:09]} 5. Bg2 {[%emt 0:00:08]} Be7 {[%emt 0:00:09]} 6. O-O {[%emt 0:00:51]} O-O {[%emt 0:00:17]} 7. Nc3 {[%emt 0:02:17]} Ne4 {[%emt 0:00:45]} 8. Bd2 {[%emt 0:02:26]} d6 {[%emt 0:01:28]} 9. Qc2 {[%emt 0:08:09]} Nxd2 {[%emt 0:00:12]} 10. Qxd2 {[%emt 0:02:38]} Nd7 {[%emt 0:00:13]} 11. e4 {[%emt 0:06:15]} e5 {[%emt 0:00:56]} 12. Rad1 {[%emt 0:06:02]} a5 {[%emt 0:10:43]} 13. b3 {[%emt 0:05:19]} Bf6 {[%emt 0:06:49]} 14. Rfe1 {[%emt 0:03:34]} g6 {[%emt 0:02:45]} 15. dxe5 {[%emt 0:05:50]} Nxe5 {[%emt 0:00:08]} 16. Nd4 {[%emt 0:00:58]} Nd7 {[%emt 0:03:20]} 17. f4 {[%emt 0:05:25]} Bg7 {[%emt 0:04:32]} 18. e5 {[%emt 0:07:02]} Nc5 {[%emt 0:11:09]} 19. Bxb7 {[%emt 0:13:27]} Nxb7 {[%emt 0:00:02]} 20. Qg2 {[%emt 0:02:50]} Nc5 {[%emt 0:00:02]} 21. exd6 {[%emt 0:03:57]} Bxd4+ {[%emt 0:08:14]} 22. Rxd4 {[%emt 0:00:08]} cxd6 {[%emt 0:00:09]} 23. Red1 {[%emt 0:02:09]} Re8 {[%emt 0:02:16]} 24. Rxd6 {[%emt 0:01:10]} Qe7 {[%emt 0:00:02]} 25. Qf3 {[%emt 0:03:40]} a4 {[%emt 0:02:00]} (25... Rab8 $16 26. R6d2 Qe3+ 27. Kg2 Re6) 26. b4 $18 {[%emt 0:05:21]} (26. Rxb6 axb3 27. axb3 Qe3+ 28. Qxe3 Rxe3 $11) 26... Ne4 {[%emt 0:00:35]} 27. Nxe4 {[%emt 0:06:27]} (27. Rxb6 Nxc3 28. Qxc3 Rad8 $17) (27. Rd7 $1 $18 {[%cal Rd7e7]} Qe6 28. Nb5 Qxc4 29. Nc7 Qxb4 (29... Qc3 30. Qxc3 Nxc3 31. R1d2 $16) 30. Nxa8 Qc5+ 31. R1d4) 27... Qxe4 $16 {[%emt 0:00:02]} 28. Qxe4 {[%emt 0:00:13]} Rxe4 {[%emt 0:00:02]} 29. R6d4 {[%emt 0:02:00]} (29. Rxb6 Rxc4 30. b5 Rc2 $11) ({White should play} 29. R1d4 $16 Re1+ 30. Kf2) 29... Rae8 $2 {[%emt 0:01:37]} (29... Re3 $14) 30. Rxe4 $18 {[%emt 0:01:33]} Rxe4 {[%emt 0:00:05] [#]} 31. Rc1 $1 {[%emt 0:00:55]} Kf8 {[%emt 0:09:09]} 32. Kf2 {[%emt 0:01:39]} f5 {[%emt 0:00:50]} (32... h5 {keeps fighting.} 33. a3 Kg7) 33. a3 $18 {[%emt 0:00:40]} h5 $2 {[%emt 0:00:22]} (33... Kf7 {might work better.} 34. c5 bxc5) 34. h4 $18 {[%emt 0:00:47]} Rd4 {[%emt 0:01:32]} 35. Ke3 {[%emt 0:00:56]} Re4+ {[%emt 0:00:27]} (35... Rd6 $142 36. c5 bxc5) 36. Kf2 {[%emt 0:00:06]} Rd4 $1 {[%emt 0:00:19]} 37. Ke3 $2 {[%emt 0:00:38]} (37. Ke2) 37... Re4+ $18 {[%emt 0:00:04]} 38. Kd3 {[%emt 0:00:17]} Kf7 {[%emt 0:02:01]} 39. c5 {[%emt 0:03:01]} bxc5 {[%emt 0:00:12]} 40. Rxc5 {[%emt 0:00:00]} Re1 {[%emt 0:00:00]} 41. Rc3 {[%emt 0:10:58]} Ke7 {[%emt 0:01:32]} 42. Kc4 {[%emt 0:01:33]} Rb1 {[%emt 0:00:05]} 43. Rd3 {[%emt 0:00:25]} Ke6 {[%emt 0:02:26]} 44. b5 {[%emt 0:03:35]} Ke7 {[%emt 0:00:19]} 45. Kc5 {[%emt 0:03:20]} Rb3 {[%emt 0:00:06]} 46. Rd4 {[%emt 0:04:11]} (46. Rxb3 $2 axb3 47. Kc6 b2 $19) 46... Rxa3 {[%emt 0:00:06]} 47. b6 {[%emt 0:00:50]} Rc3+ {[%emt 0:02:34]} 48. Kb5 {[%emt 0:00:50]} a3 {[%emt 0:00:09]} 49. b7 $2 {[%emt 0:01:43]} (49. Ka6 a2 50. Ra4 Rxg3 51. Rxa2) 49... a2 $18 {[%emt 0:02:08]} 50. Ra4 {[%emt 0:01:05]} (50. b8=R Rb3+ (50... a1=B 51. Rb7+ Ke8 52. Rdd7 $18) 51. Kc6 Rxb8 (51... a1=B 52. Rd7+ Kf6 53. Rxb3 g5 54. Rbb7 Kg6 55. Rd6+ Bf6 56. fxg5 f4 57. Rxf6#) (51... Rc3+ 52. Kb5 $17) 52. Rd7+ Ke8 $15) 50... Kd7 {[%emt 0:00:27]} 51. b8=N+ {[%emt 0:05:28]} ({Worse is} 51. b8=R Rb3+ (51... Rxg3 $2 52. Rb7+ Kc8 53. Rg7 $18) 52. Kc5 Rxb8 $11) (51. Rxa2 Kc7 $11) (51. Kb4 $18 {and the rest is easy.} Rc1 52. Rxa2 Rb1+ 53. Kc3 Rxb7 54. Ra6) 51... Kd6 $16 {[%emt 0:00:12]} 52. Na6 {[%emt 0:00:23]} Rxg3 {[%emt 0:01:31]} 53. Rxa2 {[%emt 0:00:10]} Rg4 $2 {[%emt 0:02:14][%mdl 8192]} ({Black should try} 53... Kd5 $1 $14) 54. Rd2+ $18 {[%emt 0:00:14]} Ke7 {[%emt 0:00:26]} 55. Nc7 {[%emt 0:00:30]} Rxh4 {[%emt 0:00:35] [#]} 56. Kc6 $1 {[%emt 0:00:23]} Kf6 $2 {[%emt 0:03:37]} (56... Rh1 $18 57. Rd7+ Kf8 58. Ne6+ Ke8) 57. Rd6+ {[%emt 0:01:16]} Kg7 {[%emt 0:01:19]} 58. Ne6+ {[%emt 0:00:11]} (58. Rd7+ $142 Kg8 59. Ne6 Rh2 60. Rg7+ Kh8 61. Kd6 (61. Rxg6 Rd2 $18) 61... Rh1 62. Ke7 (62. Rxg6 h4 $18) 62... Re1 63. Rxg6) 58... Kg8 {[%emt 0:00:53]} 59. Kd5 {[%emt 0:00:44]} Rh1 {[%emt 0:02:02]} 1-0